[Event "Titled Tuesday Blitz July 26 Late 2022"]
[White "Martinez, Shawn"]
[Black "Livaic, Leon"]
[WhiteFideId "2039770"]
[BlackFideId "14531534"]
[WhiteElo "2174"]
[BlackElo "2540"]
[Result "0-1"]
[Round "02"]
[TimeControl "180+1"]
[Date "2022.07.27"]
[WhiteClock "0:00:02"]
[BlackClock "0:00:32"]

1. e4 {[%clk 0:02:50]}  c5 {[%clk 0:02:58]} 2. Nc3 {[%clk 0:02:48]}  g6 {[%clk 0:02:58]} 3. Bc4 {[%clk 0:02:47]}  Bg7 {[%clk 0:02:58]} 4. Qf3 {[%clk 0:02:47]}  e6 {[%clk 0:02:58]} 5. Nb5 {[%clk 0:02:47]}  d6 {[%clk 0:02:54]} 6. Qg3 {[%clk 0:02:46]}  Be5 {[%clk 0:02:42]} 7. f4 {[%clk 0:02:44]}  Bg7 {[%clk 0:02:42]} 8. e5 {[%clk 0:02:25]}  d5 {[%clk 0:02:42]} 9. Nd6+ {[%clk 0:02:25]}  Kf8 {[%clk 0:02:43]} 10. Be2 {[%clk 0:02:20]}  Nc6 {[%clk 0:02:43]} 11. Nf3 {[%clk 0:02:14]}  Nge7 {[%clk 0:02:39]} 12. Ng5 {[%clk 0:02:01]}  Nf5 {[%clk 0:02:38]} 13. Nxf5 {[%clk 0:01:52]}  exf5 {[%clk 0:02:32]} 14. O-O {[%clk 0:01:43]}  h6 {[%clk 0:02:32]} 15. Nf3 {[%clk 0:01:42]}  Be6 {[%clk 0:02:32]} 16. Bb5 {[%clk 0:01:35]}  Qb6 {[%clk 0:02:30]} 17. Bxc6 {[%clk 0:01:34]}  Qxc6 {[%clk 0:02:30]} 18. d4 {[%clk 0:01:29]}  Kg8 {[%clk 0:02:23]} 19. c3 {[%clk 0:01:28]}  Kh7 {[%clk 0:02:23]} 20. Qh4 {[%clk 0:01:28]}  Rhc8 {[%clk 0:02:23]} 21. Be3 {[%clk 0:01:19]}  b6 {[%clk 0:02:16]} 22. h3 {[%clk 0:01:18]}  Kg8 {[%clk 0:02:15]} 23. g4 {[%clk 0:01:18]}  Qd7 {[%clk 0:02:15]} 24. g5 {[%clk 0:01:15]}  h5 {[%clk 0:02:15]} 25. Qf2 {[%clk 0:01:15]}  Qb5 {[%clk 0:02:11]} 26. Kh2 {[%clk 0:01:07]}  a5 {[%clk 0:02:11]} 27. a4 {[%clk 0:01:01]}  Qc6 {[%clk 0:02:11]} 28. h4 {[%clk 0:01:01]}  Rc7 {[%clk 0:02:12]} 29. Rfc1 {[%clk 0:00:56]}  Bc8 {[%clk 0:02:09]} 30. Qd2 {[%clk 0:00:55]}  Ba6 {[%clk 0:02:09]} 31. Rd1 {[%clk 0:00:55]}  Bc4 {[%clk 0:02:08]} 32. Ra3 {[%clk 0:00:52]}  Bf8 {[%clk 0:02:08]} 33. Qc2 {[%clk 0:00:49]}  Qb7 {[%clk 0:02:05]} 34. Raa1 {[%clk 0:00:47]}  Qa6 {[%clk 0:02:04]} 35. Rd2 {[%clk 0:00:44]}  Qb7 {[%clk 0:01:52]} 36. Rad1 {[%clk 0:00:35]}  Rd8 {[%clk 0:01:41]} 37. Bf2 {[%clk 0:00:27]}  Ba6 {[%clk 0:01:38]} 38. Kg3 {[%clk 0:00:27]}  c4 {[%clk 0:01:29]} 39. Re2 {[%clk 0:00:20]}  Qc6 {[%clk 0:01:29]} 40. e6 {[%clk 0:00:20]}  fxe6 {[%clk 0:01:27]} 41. Rde1 {[%clk 0:00:20]}  Bc8 {[%clk 0:01:26]} 42. Ne5 {[%clk 0:00:20]}  Qe8 {[%clk 0:01:27]} 43. Bg1 {[%clk 0:00:18]}  Bd7 {[%clk 0:01:27]} 44. Kh2 {[%clk 0:00:19]}  Bxa4 {[%clk 0:01:27]} 45. Qd2 {[%clk 0:00:19]}  Bd6 {[%clk 0:01:22]} 46. Bf2 {[%clk 0:00:19]}  Bd7 {[%clk 0:01:19]} 47. Bg3 {[%clk 0:00:19]}  Bxe5 {[%clk 0:01:16]} 48. Rxe5 {[%clk 0:00:19]}  Ra8 {[%clk 0:01:16]} 49. R1e3 {[%clk 0:00:17]}  Qf8 {[%clk 0:01:15]} 50. Qe2 {[%clk 0:00:18]}  Rc6 {[%clk 0:01:16]} 51. Be1 {[%clk 0:00:17]}  b5 {[%clk 0:01:16]} 52. Bd2 {[%clk 0:00:18]}  b4 {[%clk 0:01:16]} 53. Qe1 {[%clk 0:00:16]}  b3 {[%clk 0:01:14]} 54. Bc1 {[%clk 0:00:16]}  a4 {[%clk 0:01:15]} 55. Re2 {[%clk 0:00:16]}  Rca6 {[%clk 0:01:15]} 56. Qf2 {[%clk 0:00:15]}  Kf7 {[%clk 0:01:15]} 57. Rd2 {[%clk 0:00:15]}  a3 {[%clk 0:01:15]} 58. bxa3 {[%clk 0:00:15]}  Rxa3 {[%clk 0:01:16]} 59. Rb2 {[%clk 0:00:15]}  Ra1 {[%clk 0:01:15]} 60. Re1 {[%clk 0:00:14]}  R8a2 {[%clk 0:01:14]} 61. Qe3 {[%clk 0:00:13]}  Qd6 {[%clk 0:01:10]} 62. Ree2 {[%clk 0:00:11]}  Ke8 {[%clk 0:00:57]} 63. Kg3 {[%clk 0:00:11]}  Kd8 {[%clk 0:00:57]} 64. Kh3 {[%clk 0:00:12]}  Kc7 {[%clk 0:00:58]} 65. Kg2 {[%clk 0:00:12]}  Kc6 {[%clk 0:00:58]} 66. Kg3 {[%clk 0:00:13]}  Kb5 {[%clk 0:00:58]} 67. Kh3 {[%clk 0:00:13]}  Qa3 {[%clk 0:00:53]} 68. Kg3 {[%clk 0:00:11]}  Rxc1 {[%clk 0:00:43]} 69. Qxc1 {[%clk 0:00:11]}  Ra1 {[%clk 0:00:44]} 70. Qe3 {[%clk 0:00:10]}  Rd1 {[%clk 0:00:40]} 71. Qe5 {[%clk 0:00:10]}  Qa5 {[%clk 0:00:30]} 72. Qb8+ {[%clk 0:00:08]}  Kc6 {[%clk 0:00:30]} 73. Re3 {[%clk 0:00:03]}  Rc1 {[%clk 0:00:31]} 74. Qb4 {[%clk 0:00:01]}  Qxb4 {[%clk 0:00:30]} 75. cxb4 {[%clk 0:00:02]}  Kb5 {[%clk 0:00:31]} 76. Rbe2 {[%clk 0:00:02]}  Kxb4 {[%clk 0:00:30]} 77. Rxe6 {[%clk 0:00:02]}  Bxe6 {[%clk 0:00:31]} 78. Rxe6 {[%clk 0:00:02]}  b2 {[%clk 0:00:32]} 79. Rb6+ {[%clk 0:00:02]}  Kc3 {[%clk 0:00:32]} 0-1


[Site "https://www.chess.com"]

[Event "Titled Tuesday Blitz July 26 Late 2022"]
[White "Meshkovs, Nikita"]
[Black "Roberson, Peter T"]
[WhiteFideId "11602740"]
[BlackFideId "412384"]
[WhiteElo "2506"]
[BlackElo "2346"]
[Result "1-0"]
[Round "02"]
[TimeControl "180+1"]
[Date "2022.07.26"]
[WhiteClock "0:00:18"]
[BlackClock "0:00:09"]

1. c4 {[%clk 0:03:00]}  b6 {[%clk 0:02:59]} 2. Nc3 {[%clk 0:02:58]}  e6 {[%clk 0:02:58]} 3. a3 {[%clk 0:02:57]}  c5 {[%clk 0:02:56]} 4. e3 {[%clk 0:02:49]}  Bb7 {[%clk 0:02:56]} 5. Nf3 {[%clk 0:02:49]}  Nf6 {[%clk 0:02:56]} 6. d4 {[%clk 0:02:44]}  d5 {[%clk 0:02:53]} 7. Be2 {[%clk 0:02:39]}  Nbd7 {[%clk 0:02:51]} 8. O-O {[%clk 0:02:39]}  dxc4 {[%clk 0:02:51]} 9. Bxc4 {[%clk 0:02:38]}  Be7 {[%clk 0:02:51]} 10. Qe2 {[%clk 0:02:36]}  O-O {[%clk 0:02:51]} 11. Rd1 {[%clk 0:02:36]}  Qc8 {[%clk 0:02:46]} 12. h3 {[%clk 0:01:59]}  a6 {[%clk 0:02:42]} 13. a4 {[%clk 0:01:55]}  cxd4 {[%clk 0:02:40]} 14. exd4 {[%clk 0:01:56]}  Re8 {[%clk 0:02:36]} 15. Ng5 {[%clk 0:01:40]}  Nf8 {[%clk 0:02:32]} 16. Bb3 {[%clk 0:01:32]}  Qc6 {[%clk 0:02:16]} 17. Nf3 {[%clk 0:01:26]}  Rad8 {[%clk 0:02:15]} 18. Bf4 {[%clk 0:01:25]}  Ng6 {[%clk 0:02:15]} 19. Bg3 {[%clk 0:01:20]}  Bd6 {[%clk 0:02:13]} 20. Rac1 {[%clk 0:01:20]}  Bxg3 {[%clk 0:02:12]} 21. fxg3 {[%clk 0:01:21]}  Qd6 {[%clk 0:02:12]} 22. Kh2 {[%clk 0:01:17]}  h5 {[%clk 0:02:08]} 23. Ne5 {[%clk 0:01:10]}  h4 {[%clk 0:02:00]} 24. Qe3 {[%clk 0:01:03]}  Nd5 {[%clk 0:01:55]} 25. Nxd5 {[%clk 0:00:50]}  Bxd5 {[%clk 0:01:55]} 26. Bc2 {[%clk 0:00:43]}  Nxe5 {[%clk 0:01:49]} 27. dxe5 {[%clk 0:00:42]}  Qe7 {[%clk 0:01:50]} 28. Rd4 {[%clk 0:00:39]}  hxg3+ {[%clk 0:01:44]} 29. Qxg3 {[%clk 0:00:40]}  Rc8 {[%clk 0:01:18]} 30. Rg4 {[%clk 0:00:40]}  Qf8 {[%clk 0:01:18]} 31. Qh4 {[%clk 0:00:35]}  Rxc2 {[%clk 0:01:04]} 32. Rxc2 {[%clk 0:00:35]}  Rc8 {[%clk 0:01:02]} 33. Rxc8 {[%clk 0:00:32]}  Qxc8 {[%clk 0:01:03]} 34. Qf6 {[%clk 0:00:31]}  Qf8 {[%clk 0:00:59]} 35. Rg3 {[%clk 0:00:27]}  b5 {[%clk 0:00:57]} 36. axb5 {[%clk 0:00:26]}  axb5 {[%clk 0:00:58]} 37. Qg5 {[%clk 0:00:25]}  b4 {[%clk 0:00:56]} 38. h4 {[%clk 0:00:23]}  Be4 {[%clk 0:00:51]} 39. Qf4 {[%clk 0:00:23]}  Qa8 {[%clk 0:00:45]} 40. h5 {[%clk 0:00:21]}  Qd5 {[%clk 0:00:39]} 41. Qf6 {[%clk 0:00:20]}  Bg6 {[%clk 0:00:38]} 42. Qg5 {[%clk 0:00:19]}  b3 {[%clk 0:00:18]} 43. hxg6 {[%clk 0:00:17]}  fxg6 {[%clk 0:00:19]} 44. Qxg6 {[%clk 0:00:15]}  Qxe5 {[%clk 0:00:19]} 45. Qg5 {[%clk 0:00:15]}  Qxb2 {[%clk 0:00:17]} 46. Qd8+ {[%clk 0:00:15]}  Kh7 {[%clk 0:00:15]} 47. Rh3+ {[%clk 0:00:15]}  Kg6 {[%clk 0:00:15]} 48. Qe8+ {[%clk 0:00:16]}  Kf6 {[%clk 0:00:14]} 49. Rf3+ {[%clk 0:00:16]}  Ke5 {[%clk 0:00:12]} 50. Qb5+ {[%clk 0:00:16]}  Kd6 {[%clk 0:00:12]} 51. Qb6+ {[%clk 0:00:16]}  Ke7 {[%clk 0:00:11]} 52. Qb7+ {[%clk 0:00:16]}  Ke8 {[%clk 0:00:12]} 53. Qb8+ {[%clk 0:00:16]}  Ke7 {[%clk 0:00:12]} 54. Qxb3 {[%clk 0:00:16]}  Qe5+ {[%clk 0:00:11]} 55. Rg3 {[%clk 0:00:16]}  Qh5+ {[%clk 0:00:10]} 56. Rh3 {[%clk 0:00:17]}  Qe5+ {[%clk 0:00:10]} 57. Qg3 {[%clk 0:00:17]}  Qf6 {[%clk 0:00:09]} 58. Qc7+ {[%clk 0:00:18]} 1-0


[Site "https://www.chess.com"]

[Event "Titled Tuesday Blitz July 26 Late 2022"]
[White "Ovezdurdyyeva, Jemal"]
[Black "Tymrakiewicz, Rafal"]
[WhiteFideId "14001888"]
[BlackFideId "1108832"]
[WhiteElo "1946"]
[BlackElo "2205"]
[Result "1-0"]
[Round "02"]
[TimeControl "180+1"]
[Date "2022.07.27"]
[WhiteClock "0:00:07"]
[BlackClock "0:00:01"]

1. e4 {[%clk 0:03:00]}  Nf6 {[%clk 0:02:59]} 2. e5 {[%clk 0:03:00]}  Nd5 {[%clk 0:02:59]} 3. c4 {[%clk 0:02:59]}  Nb6 {[%clk 0:02:58]} 4. Nc3 {[%clk 0:02:59]}  d6 {[%clk 0:02:58]} 5. exd6 {[%clk 0:02:56]}  cxd6 {[%clk 0:02:59]} 6. Nf3 {[%clk 0:02:54]}  g6 {[%clk 0:02:59]} 7. h3 {[%clk 0:02:53]}  Bg7 {[%clk 0:02:59]} 8. d4 {[%clk 0:02:54]}  O-O {[%clk 0:03:00]} 9. Be2 {[%clk 0:02:54]}  Nc6 {[%clk 0:02:59]} 10. O-O {[%clk 0:02:53]}  Bf5 {[%clk 0:02:55]} 11. Be3 {[%clk 0:02:51]}  d5 {[%clk 0:02:55]} 12. c5 {[%clk 0:02:36]}  Nc4 {[%clk 0:02:55]} 13. Bc1 {[%clk 0:02:30]}  b6 {[%clk 0:02:36]} 14. b3 {[%clk 0:02:22]}  N4a5 {[%clk 0:02:36]} 15. Bb2 {[%clk 0:02:14]}  Be4 {[%clk 0:02:24]} 16. a3 {[%clk 0:01:48]}  e6 {[%clk 0:02:12]} 17. b4 {[%clk 0:01:47]}  Bxf3 {[%clk 0:02:09]} 18. gxf3 {[%clk 0:01:34]}  Nxd4 {[%clk 0:01:53]} 19. bxa5 {[%clk 0:01:26]}  Qg5+ {[%clk 0:01:53]} 20. Kh1 {[%clk 0:01:19]}  Qh4 {[%clk 0:01:52]} 21. Kg2 {[%clk 0:01:19]}  bxc5 {[%clk 0:01:45]} 22. Rh1 {[%clk 0:00:50]}  Rab8 {[%clk 0:01:42]} 23. Ra2 {[%clk 0:00:46]}  Rb3 {[%clk 0:01:13]} 24. Nb5 {[%clk 0:00:37]}  Rxb5 {[%clk 0:00:57]} 25. Bxb5 {[%clk 0:00:36]}  Nxb5 {[%clk 0:00:57]} 26. Bxg7 {[%clk 0:00:36]}  Kxg7 {[%clk 0:00:57]} 27. Qc2 {[%clk 0:00:34]}  Rc8 {[%clk 0:00:46]} 28. Rb2 {[%clk 0:00:31]}  Nd4 {[%clk 0:00:46]} 29. Qc3 {[%clk 0:00:30]}  Qg5+ {[%clk 0:00:45]} 30. Kf1 {[%clk 0:00:23]}  Qf6 {[%clk 0:00:45]} 31. Kg2 {[%clk 0:00:20]}  a6 {[%clk 0:00:45]} 32. Rd1 {[%clk 0:00:19]}  e5 {[%clk 0:00:39]} 33. Rb6 {[%clk 0:00:17]}  Qg5+ {[%clk 0:00:35]} 34. Kh2 {[%clk 0:00:09]}  Qf4+ {[%clk 0:00:34]} 35. Kg2 {[%clk 0:00:10]}  Qg5+ {[%clk 0:00:34]} 36. Kh2 {[%clk 0:00:10]}  Qf5 {[%clk 0:00:34]} 37. Kg2 {[%clk 0:00:08]}  c4 {[%clk 0:00:29]} 38. Rxa6 {[%clk 0:00:08]}  Rd8 {[%clk 0:00:19]} 39. Rb6 {[%clk 0:00:07]}  Ne6 {[%clk 0:00:18]} 40. a6 {[%clk 0:00:06]}  Nf4+ {[%clk 0:00:18]} 41. Kf1 {[%clk 0:00:06]}  Qg5 {[%clk 0:00:19]} 42. Ke1 {[%clk 0:00:07]}  Qg1+ {[%clk 0:00:18]} 43. Kd2 {[%clk 0:00:07]}  Qxf2+ {[%clk 0:00:18]} 44. Kc1 {[%clk 0:00:06]}  d4 {[%clk 0:00:17]} 45. Qxc4 {[%clk 0:00:05]}  Ne2+ {[%clk 0:00:16]} 46. Kb1 {[%clk 0:00:02]}  Nc3+ {[%clk 0:00:16]} 47. Kc1 {[%clk 0:00:02]}  Ne2+ {[%clk 0:00:15]} 48. Kb1 {[%clk 0:00:02]}  Nc3+ {[%clk 0:00:14]} 49. Kc1 {[%clk 0:00:02]}  Qe3+ {[%clk 0:00:12]} 50. Rd2 {[%clk 0:00:02]}  Qe1+ {[%clk 0:00:10]} 51. Kc2 {[%clk 0:00:03]}  Rd5 {[%clk 0:00:05]} 52. Rb3 {[%clk 0:00:03]}  Qg1 {[%clk 0:00:03]} 53. Rxc3 {[%clk 0:00:04]}  d3+ {[%clk 0:00:03]} 54. Rdxd3 {[%clk 0:00:04]}  Qf2+ {[%clk 0:00:03]} 55. Kb3 {[%clk 0:00:04]}  Qb6+ {[%clk 0:00:02]} 56. Qb4 {[%clk 0:00:04]}  Rb5 {[%clk 0:00:02]} 57. a7 {[%clk 0:00:04]}  Rxb4+ {[%clk 0:00:03]} 58. axb4 {[%clk 0:00:04]}  Qxa7 {[%clk 0:00:03]} 59. Re3 {[%clk 0:00:05]}  f6 {[%clk 0:00:03]} 60. Kc4 {[%clk 0:00:05]}  Qd4+ {[%clk 0:00:03]} 61. Kb3 {[%clk 0:00:05]}  g5 {[%clk 0:00:04]} 62. b5 {[%clk 0:00:06]}  Qd5+ {[%clk 0:00:04]} 63. Kb4 {[%clk 0:00:06]}  h5 {[%clk 0:00:04]} 64. Rc7+ {[%clk 0:00:05]}  Kg6 {[%clk 0:00:04]} 65. Rec3 {[%clk 0:00:05]}  Qd4+ {[%clk 0:00:03]} 66. R3c4 {[%clk 0:00:05]}  Qb2+ {[%clk 0:00:03]} 67. Kc5 {[%clk 0:00:05]}  Qf2+ {[%clk 0:00:04]} 68. Kd6 {[%clk 0:00:05]}  Qxf3 {[%clk 0:00:05]} 69. R7c6 {[%clk 0:00:05]}  Qd3+ {[%clk 0:00:05]} 70. Ke7 {[%clk 0:00:06]}  e4 {[%clk 0:00:05]} 71. R4c5 {[%clk 0:00:06]}  e3 {[%clk 0:00:05]} 72. Rxf6+ {[%clk 0:00:06]}  Kg7 {[%clk 0:00:04]} 73. Rf7+ {[%clk 0:00:07]}  Kg6 {[%clk 0:00:04]} 74. Rc6+ {[%clk 0:00:07]}  Qd6+ {[%clk 0:00:01]} 75. Rxd6# {[%clk 0:00:07]} 1-0


[Site "https://www.chess.com"]

[Event "Titled Tuesday Blitz July 26 Late 2022"]
[White "Peng, David Yu"]
[Black "Suleymanli, Aydin"]
[WhiteFideId "2605376"]
[BlackFideId "13413937"]
[WhiteElo "2166"]
[BlackElo "2481"]
[Result "0-1"]
[Round "02"]
[TimeControl "180+1"]
[Date "2022.07.26"]
[WhiteClock "0:00:08"]
[BlackClock "0:00:16"]

1. e4 {[%clk 0:03:00]}  e5 {[%clk 0:02:59]} 2. Nf3 {[%clk 0:03:00]}  Nc6 {[%clk 0:02:59]} 3. Bb5 {[%clk 0:03:00]}  a6 {[%clk 0:02:58]} 4. Ba4 {[%clk 0:03:00]}  Nf6 {[%clk 0:02:58]} 5. Qe2 {[%clk 0:03:00]}  Qe7 {[%clk 0:02:28]} 6. c3 {[%clk 0:02:58]}  b5 {[%clk 0:02:23]} 7. Bb3 {[%clk 0:02:54]}  d6 {[%clk 0:02:24]} 8. O-O {[%clk 0:02:51]}  g6 {[%clk 0:02:23]} 9. d3 {[%clk 0:02:29]}  h6 {[%clk 0:02:22]} 10. Re1 {[%clk 0:02:25]}  Bg7 {[%clk 0:02:22]} 11. Nbd2 {[%clk 0:02:23]}  O-O {[%clk 0:02:22]} 12. Nf1 {[%clk 0:02:23]}  Kh8 {[%clk 0:02:13]} 13. Ne3 {[%clk 0:02:21]}  Na5 {[%clk 0:02:08]} 14. Bc2 {[%clk 0:02:19]}  Nc6 {[%clk 0:01:57]} 15. a4 {[%clk 0:02:17]}  Be6 {[%clk 0:01:57]} 16. b4 {[%clk 0:02:11]}  d5 {[%clk 0:01:53]} 17. Bd2 {[%clk 0:01:58]}  d4 {[%clk 0:01:47]} 18. cxd4 {[%clk 0:01:54]}  exd4 {[%clk 0:01:48]} 19. Nf1 {[%clk 0:01:25]}  Nxb4 {[%clk 0:01:48]} 20. Bxb4 {[%clk 0:01:20]}  Qxb4 {[%clk 0:01:47]} 21. Reb1 {[%clk 0:01:21]}  Qc5 {[%clk 0:01:46]} 22. Bb3 {[%clk 0:01:16]}  Bxb3 {[%clk 0:01:41]} 23. Rxb3 {[%clk 0:01:17]}  Nd7 {[%clk 0:01:34]} 24. Qd2 {[%clk 0:01:08]}  c6 {[%clk 0:01:29]} 25. h4 {[%clk 0:01:04]}  Qd6 {[%clk 0:01:24]} 26. axb5 {[%clk 0:00:48]}  axb5 {[%clk 0:01:25]} 27. Rc1 {[%clk 0:00:43]}  Rfb8 {[%clk 0:01:11]} 28. h5 {[%clk 0:00:41]}  c5 {[%clk 0:01:08]} 29. hxg6 {[%clk 0:00:39]}  fxg6 {[%clk 0:01:09]} 30. Qb2 {[%clk 0:00:30]}  b4 {[%clk 0:01:00]} 31. N1d2 {[%clk 0:00:27]}  Ra4 {[%clk 0:00:56]} 32. Nc4 {[%clk 0:00:27]}  Qa6 {[%clk 0:00:56]} 33. Qd2 {[%clk 0:00:26]}  Ra2 {[%clk 0:00:53]} 34. Qf4 {[%clk 0:00:23]}  Rf8 {[%clk 0:00:48]} 35. Qc7 {[%clk 0:00:22]}  Qe6 {[%clk 0:00:48]} 36. Rb2 {[%clk 0:00:18]}  Raa8 {[%clk 0:00:38]} 37. Qd6 {[%clk 0:00:17]}  Qxd6 {[%clk 0:00:36]} 38. Nxd6 {[%clk 0:00:18]}  Ra6 {[%clk 0:00:34]} 39. Nc4 {[%clk 0:00:17]}  Rfa8 {[%clk 0:00:34]} 40. Nfd2 {[%clk 0:00:17]}  h5 {[%clk 0:00:34]} 41. g3 {[%clk 0:00:17]}  h4 {[%clk 0:00:31]} 42. Kg2 {[%clk 0:00:15]}  hxg3 {[%clk 0:00:31]} 43. fxg3 {[%clk 0:00:16]}  Bh6 {[%clk 0:00:31]} 44. Rh1 {[%clk 0:00:15]}  Kg7 {[%clk 0:00:31]} 45. Nf3 {[%clk 0:00:14]}  Ra2 {[%clk 0:00:30]} 46. Rb1 {[%clk 0:00:13]}  Kf6 {[%clk 0:00:21]} 47. g4 {[%clk 0:00:13]}  Bf4 {[%clk 0:00:21]} 48. Rf1 {[%clk 0:00:12]}  Ke6 {[%clk 0:00:21]} 49. Rb1 {[%clk 0:00:11]}  g5 {[%clk 0:00:20]} 50. Ng1 {[%clk 0:00:11]}  Rxb2+ {[%clk 0:00:20]} 51. Rxb2 {[%clk 0:00:12]}  Ra1 {[%clk 0:00:20]} 52. Ne2 {[%clk 0:00:12]}  Be3 {[%clk 0:00:19]} 53. Nxe3 {[%clk 0:00:10]}  dxe3 {[%clk 0:00:19]} 54. Rb3 {[%clk 0:00:10]}  Ra3 {[%clk 0:00:17]} 55. Rxa3 {[%clk 0:00:09]}  bxa3 {[%clk 0:00:18]} 56. Nc3 {[%clk 0:00:10]}  Ne5 {[%clk 0:00:18]} 57. Na2 {[%clk 0:00:08]}  Kd6 {[%clk 0:00:17]} 58. Nc1 {[%clk 0:00:06]}  Nxd3 {[%clk 0:00:15]} 59. Nxd3 {[%clk 0:00:07]}  a2 {[%clk 0:00:15]} 60. e5+ {[%clk 0:00:07]}  Ke7 {[%clk 0:00:15]} 61. Nxc5 {[%clk 0:00:06]}  a1=Q {[%clk 0:00:15]} 62. Kf3 {[%clk 0:00:07]}  Qxe5 {[%clk 0:00:15]} 63. Nd3 {[%clk 0:00:07]}  Qd4 {[%clk 0:00:15]} 64. Ne1 {[%clk 0:00:07]}  Qf4+ {[%clk 0:00:15]} 65. Ke2 {[%clk 0:00:08]}  Qf2+ {[%clk 0:00:16]} 0-1


[Site "https://www.chess.com"]

[Event "Titled Tuesday Blitz July 26 Late 2022"]
[White "Pfreundt, Jakob"]
[Black "Bortnyk, Olexandr"]
[WhiteFideId "12918156"]
[BlackFideId "14120828"]
[WhiteElo "2345"]
[BlackElo "2723"]
[Result "0-1"]
[Round "02"]
[TimeControl "180+1"]
[Date "2022.07.26"]
[WhiteClock "0:00:21"]
[BlackClock "0:01:14"]

1. Nf3 {[%clk 0:03:00]}  d6 {[%clk 0:02:59]} 2. d4 {[%clk 0:03:00]}  Nf6 {[%clk 0:03:00]} 3. g3 {[%clk 0:02:59]}  g6 {[%clk 0:02:58]} 4. Bg2 {[%clk 0:02:59]}  Bg7 {[%clk 0:02:57]} 5. O-O {[%clk 0:03:00]}  O-O {[%clk 0:02:57]} 6. Nc3 {[%clk 0:03:00]}  Nbd7 {[%clk 0:02:51]} 7. a4 {[%clk 0:02:59]}  a5 {[%clk 0:02:51]} 8. e4 {[%clk 0:02:58]}  e5 {[%clk 0:02:51]} 9. h3 {[%clk 0:02:58]}  b6 {[%clk 0:02:51]} 10. Re1 {[%clk 0:02:56]}  Bb7 {[%clk 0:02:51]} 11. Be3 {[%clk 0:02:48]}  Nxe4 {[%clk 0:02:50]} 12. Nxe4 {[%clk 0:02:42]}  Bxe4 {[%clk 0:02:50]} 13. dxe5 {[%clk 0:02:16]}  Nxe5 {[%clk 0:02:39]} 14. Nxe5 {[%clk 0:02:13]}  Bxg2 {[%clk 0:02:40]} 15. Kxg2 {[%clk 0:01:59]}  dxe5 {[%clk 0:02:38]} 16. Qe2 {[%clk 0:01:52]}  Qd5+ {[%clk 0:02:35]} 17. Kh2 {[%clk 0:01:51]}  Rad8 {[%clk 0:02:34]} 18. Rad1 {[%clk 0:01:50]}  Qc6 {[%clk 0:02:32]} 19. b3 {[%clk 0:01:46]}  h6 {[%clk 0:02:32]} 20. h4 {[%clk 0:01:44]}  f5 {[%clk 0:02:32]} 21. Bc1 {[%clk 0:01:36]}  Kh7 {[%clk 0:02:31]} 22. Ba3 {[%clk 0:01:26]}  Rfe8 {[%clk 0:02:28]} 23. h5 {[%clk 0:01:17]}  g5 {[%clk 0:02:26]} 24. Rxd8 {[%clk 0:01:10]}  Rxd8 {[%clk 0:02:24]} 25. Rd1 {[%clk 0:01:11]}  Rd7 {[%clk 0:02:15]} 26. Rd3 {[%clk 0:01:06]}  e4 {[%clk 0:02:14]} 27. Rxd7 {[%clk 0:01:05]}  Qxd7 {[%clk 0:02:15]} 28. g4 {[%clk 0:01:03]}  Be5+ {[%clk 0:02:13]} 29. Kg2 {[%clk 0:01:02]}  Kg7 {[%clk 0:02:09]} 30. Qc4 {[%clk 0:00:51]}  Qd1 {[%clk 0:01:38]} 31. gxf5 {[%clk 0:00:45]}  Qf3+ {[%clk 0:01:34]} 32. Kg1 {[%clk 0:00:30]}  Qh3 {[%clk 0:01:24]} 33. f6+ {[%clk 0:00:21]}  Kh8 {[%clk 0:01:14]} 0-1


[Site "https://www.chess.com"]

[Event "Titled Tuesday Blitz July 26 Late 2022"]
[White "Plotnikov, Pavel"]
[Black "Kravtsiv, Martyn"]
[WhiteFideId "4170342"]
[BlackFideId "14113147"]
[WhiteElo "2298"]
[BlackElo "2694"]
[Result "1-0"]
[Round "02"]
[TimeControl "180+1"]
[Date "2022.07.26"]
[WhiteClock "0:00:26"]
[BlackClock "0:00:15"]

1. e4 {[%clk 0:02:58]}  e5 {[%clk 0:03:00]} 2. Nf3 {[%clk 0:02:58]}  Nc6 {[%clk 0:03:00]} 3. Nc3 {[%clk 0:02:58]}  Nf6 {[%clk 0:02:59]} 4. Be2 {[%clk 0:02:57]}  Bb4 {[%clk 0:02:51]} 5. Nd5 {[%clk 0:02:57]}  Be7 {[%clk 0:02:50]} 6. Nxe7 {[%clk 0:02:54]}  Qxe7 {[%clk 0:02:50]} 7. O-O {[%clk 0:02:51]}  d6 {[%clk 0:02:50]} 8. d4 {[%clk 0:02:48]}  Bg4 {[%clk 0:02:43]} 9. d5 {[%clk 0:02:43]}  Bxf3 {[%clk 0:02:42]} 10. Bxf3 {[%clk 0:02:42]}  Nd4 {[%clk 0:02:43]} 11. Be3 {[%clk 0:02:39]}  Nxf3+ {[%clk 0:02:41]} 12. Qxf3 {[%clk 0:02:39]}  h6 {[%clk 0:02:40]} 13. c4 {[%clk 0:02:36]}  O-O {[%clk 0:02:39]} 14. b4 {[%clk 0:02:34]}  c6 {[%clk 0:02:37]} 15. dxc6 {[%clk 0:02:27]}  bxc6 {[%clk 0:02:36]} 16. b5 {[%clk 0:02:27]}  Rfc8 {[%clk 0:02:34]} 17. a4 {[%clk 0:02:27]}  Qe6 {[%clk 0:02:33]} 18. Rfc1 {[%clk 0:02:25]}  cxb5 {[%clk 0:01:55]} 19. cxb5 {[%clk 0:02:23]}  Rc4 {[%clk 0:01:56]} 20. a5 {[%clk 0:02:15]}  Nxe4 {[%clk 0:01:46]} 21. b6 {[%clk 0:02:13]}  axb6 {[%clk 0:01:45]} 22. axb6 {[%clk 0:02:13]}  Qc8 {[%clk 0:01:23]} 23. Rxa8 {[%clk 0:01:34]}  Rxc1+ {[%clk 0:01:21]} 24. Bxc1 {[%clk 0:01:33]}  Qxa8 {[%clk 0:01:22]} 25. h3 {[%clk 0:01:27]}  Qc6 {[%clk 0:01:11]} 26. Kh2 {[%clk 0:01:13]}  d5 {[%clk 0:01:08]} 27. Qb3 {[%clk 0:00:44]}  Nd6 {[%clk 0:01:07]} 28. Ba3 {[%clk 0:00:40]}  Nb7 {[%clk 0:01:07]} 29. Qb4 {[%clk 0:00:40]}  Kh7 {[%clk 0:01:05]} 30. Qe7 {[%clk 0:00:36]}  Qxb6 {[%clk 0:00:42]} 31. Qxf7 {[%clk 0:00:36]}  Qf6 {[%clk 0:00:26]} 32. Qxb7 {[%clk 0:00:34]}  Qxf2 {[%clk 0:00:20]} 33. Qxd5 {[%clk 0:00:32]}  Qf4+ {[%clk 0:00:20]} 34. g3 {[%clk 0:00:29]}  Qf2+ {[%clk 0:00:21]} 35. Qg2 {[%clk 0:00:29]}  Qe3 {[%clk 0:00:21]} 36. Bb2 {[%clk 0:00:29]}  e4 {[%clk 0:00:20]} 37. Qc2 {[%clk 0:00:29]}  Qf3 {[%clk 0:00:20]} 38. h4 {[%clk 0:00:28]}  h5 {[%clk 0:00:20]} 39. Qd2 {[%clk 0:00:27]}  Kg6 {[%clk 0:00:16]} 40. Bc1 {[%clk 0:00:27]}  Kh7 {[%clk 0:00:15]} 41. Qe3 {[%clk 0:00:26]}  Qf4 {[%clk 0:00:15]} 42. Qxf4 {[%clk 0:00:26]} 1-0


[Site "https://www.chess.com"]

[Event "Titled Tuesday Blitz July 26 Late 2022"]
[White "Raja Harshit"]
[Black "Kozin, Yuri"]
[WhiteFideId "5089000"]
[BlackFideId "4129920"]
[WhiteElo "2338"]
[BlackElo "2532"]
[Result "*"]
[Round "02"]
[TimeControl "180+1"]
[Date "2022.07.26"]
[WhiteClock "0:02:35"]
[BlackClock "0:01:29"]

1. e4 {[%clk 0:03:00]}  c5 {[%clk 0:02:59]} 2. Nf3 {[%clk 0:03:01]}  e6 {[%clk 0:03:00]} 3. d4 {[%clk 0:03:01]}  cxd4 {[%clk 0:03:01]} 4. Nxd4 {[%clk 0:03:02]}  a6 {[%clk 0:03:01]} 5. Bd3 {[%clk 0:03:03]}  Qc7 {[%clk 0:03:00]} 6. O-O {[%clk 0:03:03]}  Nc6 {[%clk 0:03:01]} 7. Nxc6 {[%clk 0:03:02]}  dxc6 {[%clk 0:03:02]} 8. a4 {[%clk 0:03:00]}  a5 {[%clk 0:02:58]} 9. Na3 {[%clk 0:03:00]}  e5 {[%clk 0:02:48]} 10. Nc4 {[%clk 0:03:00]}  Nf6 {[%clk 0:02:37]} 11. f4 {[%clk 0:02:49]}  Bc5+ {[%clk 0:02:03]} 12. Kh1 {[%clk 0:02:49]}  Ng4 {[%clk 0:01:47]} 13. fxe5 {[%clk 0:02:39]}  O-O {[%clk 0:01:29]} 14. Qf3 {[%clk 0:02:35]} *


[Site "https://www.chess.com"]